[Event "FRA-ch Teams Top 16-A 2022"]
[Site "Chartres"]
[Date "2022.06.13"]
[Round "5.28"]
[White "Ramirez Garcia, Jorge Alberto"]
[Black "Bailet, Pierre"]
[Result "1/2-1/2"]
[ECO "C47"]
[WhiteElo "2242"]
[BlackElo "2509"]
[Annotator "TA"]
[PlyCount "115"]
[EventDate "2022.06.09"]
[EventType "team-tourn"]
[EventCountry "FRA"]
[SourceTitle "playchess.com"]
[Source "ChessBase"]
[SourceQuality "1"]
[TimeControl "40/5400+30:1800+30"]

{[%evp 17,115,0,0,1,2,6,16,7,9,14,15,10,38,33,39,32,27,24,21,0,9,0,0,0,0,0,0,0,0,0,0,0,0,0,0,0,0,0,0,-13,0,0,0,0,0,-160,0,-14,0,0,0,0,0,0,27,13,22,0,0,0,33,38,41,8,286,267,225,197,502,491,480,459,456,404,375,347,306,196,189,12,17,8,8,8,8,8,8,8,8,8,8,8,8,8,8,8,8,8,8,8]} 1. e4 {[%emt 0:00:04]} e5 {[%emt 0:00:13]} 2. Nf3 {[%emt 0:00:07]} Nc6 {[%emt 0:00:07]} 3. Nc3 {[%emt 0:00:35]} Nf6 {[%emt 0:00:15]} 4. d4 {[%emt 0:00:16]} exd4 {[%emt 0:00:15]} 5. Nxd4 {[%emt 0:00:07]} Bb4 {[%emt 0:00:27]} 6. Nxc6 {[%emt 0:00:06]} bxc6 {[%emt 0:00:06]} 7. Bd3 {[%emt 0:00:08]} d5 {[%emt 0:00:21]} 8. exd5 {[%emt 0:00:06]} O-O {[%emt 0:00:30] is the new trend.} 9. O-O {[%emt 0:00:09]} cxd5 {[%emt 0:00:11]} 10. h3 {[%emt 0:00:08] Against Bg4. C47: Scotch Four Knights and Four Knights with 4 g3.} Rb8 {[%emt 0:01:49]} 11. Bg5 {[%emt 0:12:40]} Be7 {[%emt 0:09:47]} 12. b3 {[%emt 0:21:14]} h6 {[%emt 0:12:20]} 13. Bf4 {[%emt 0:01:49]} Bd6 {[%emt 0:01:44]} 14. Qf3 {[%emt 0:00:43]} Bb7 {[%emt 0:03:32]} 15. Bxd6 {[%emt 0:16:42]} Qxd6 {[%emt 0:00:44]} 16. Nb5 {[%emt 0:06:20][%csl LRa7,LRd6]} Qb6 {[%emt 0:03:45]} 17. Qf4 {[%emt 0:05:59]} c5 {[%emt 0:04:38]} 18. Nd6 {[%emt 0:02:32] [#]} Bc8 $146 {[%emt 0:10:13]} ({Predecessor:} 18... Qc7 19. Qg3 Nh5 20. Qe5 Rbd8 21. Qxh5 Qxd6 22. Rfe1 Rfe8 23. Qh4 Bc6 24. a4 Kf8 25. Bb5 Rb8 26. Bxc6 Qxc6 {½-½ (39) Adams,M (2745)-Anand,V (2793) London 2014}) 19. Rfe1 {[%emt 0:10:56]} Be6 {[%emt 0:02:55]} 20. Nf5 {[%emt 0:01:09]} Bxf5 {[%emt 0:00:36]} 21. Qxf5 {[%emt 0:00:03]} Rfe8 {[%emt 0:03:41]} 22. Kf1 {[%emt 0:00:40]} Qd6 {[%emt 0:02:24]} 23. Rxe8+ {[%emt 0:01:27]} Rxe8 {[%emt 0:00:14]} 24. Re1 {[%emt 0:00:17]} Rxe1+ {[%emt 0:01:51]} 25. Kxe1 $11 {[%emt 0:00:05][%mdl 4096] Endgame KQB-KQN} g6 $36 {[%emt 0:00:39][%mdl 2048] Black is pushing.} 26. Qc8+ {[%emt 0:01:33]} Kg7 {[%emt 0:00:25]} 27. Kf1 {[%emt 0:00:41][%cal Be1f1,Bf1g1,Bg1g2][%mdl 32]} a5 {[%emt 0:06:34]} 28. Kg1 {[%emt 0:00:51]} Qb6 {[%emt 0:01:48][%cal Oa5a4]} 29. g3 {[%emt 0:01:53]} Qb4 {[%emt 0:02:47]} 30. Qc6 {[%emt 0:00:40]} h5 {[%emt 0:03:46]} 31. Qd6 $2 {[%emt 0:04:33]} (31. Kf1 $11) 31... Qd4 $2 {[%emt 0:02:37]} ({Better is} 31... Qe1+ $17 32. Bf1 {[#]} (32. Kg2 c4 $17) 32... Qxf2+ $1 33. Kxf2 Ne4+ 34. Kf3 Nxd6) 32. Kg2 {[%emt 0:04:12]} g5 {[%emt 0:05:01]} 33. Qe7 {[%emt 0:02:31]} c4 {[%emt 0:13:05]} 34. Bf5 {[%emt 0:00:20][%cal Oc2c3]} h4 {[%emt 0:07:11]} 35. c3 {[%emt 0:03:28]} Qb6 {[%emt 0:00:30]} 36. gxh4 {[%emt 0:00:12]} (36. Qe5 {keeps more tension.} cxb3 37. axb3 d4 38. gxh4 gxh4 39. cxd4 Qb7+ 40. d5) 36... gxh4 {[%emt 0:00:11]} 37. Qe3 {[%emt 0:01:07]} Qxe3 {[%emt 0:01:11]} 38. fxe3 {[%emt 0:00:02] KB-KN} Kf8 {[%emt 0:00:28]} 39. Kf3 {[%emt 0:00:41]} Ke7 {[%emt 0:00:00]} 40. Kf4 {[%emt 0:00:21] [#] Threatens to win with Ke5.} cxb3 $2 {[%emt 0:00:43][%mdl 8192]} (40... Nh5+ $11 {and Black stays safe.} 41. Ke5 Ng3) 41. axb3 $18 {[%emt 0:03:34] Black must now prevent Kg5.} Kd6 {[%emt 0:00:03]} 42. Bc2 {[%emt 0:05:23]} Ne8 $2 {[%emt 0:13:57]} (42... d4 {is tougher.}) 43. Kg5 {[%emt 0:01:40]} Nc7 {[%emt 0:00:02]} 44. Bd3 {[%emt 0:00:46] Against Nb5} Ke5 {[%emt 0:00:09]} 45. Kxh4 {[%emt 0:00:18]} f5 {[%emt 0:00:05]} 46. Kg3 {[%emt 0:02:30] Against f4+} Ne6 {[%emt 0:00:04]} 47. h4 {[%emt 0:05:23]} f4+ {[%emt 0:00:26]} 48. Kf3 $2 {[%emt 0:00:26]} (48. exf4+ $18 Nxf4 49. Bb5) 48... fxe3 $11 {[%emt 0:00:11] The position is equal.} 49. Kxe3 {[%emt 0:00:07] aiming for h5.} d4+ $1 {[%emt 0:00:30]} 50. Kd2 {[%emt 0:04:15]} dxc3+ {[%emt 0:00:20]} 51. Kxc3 {[%emt 0:00:12]} Nc5 {[%emt 0:00:13]} 52. h5 {[%emt 0:00:53]} Kf6 {[%emt 0:00:17]} 53. h6 {[%emt 0:00:08]} Nxb3 {[%emt 0:02:11]} 54. Kxb3 {[%emt 0:00:09]} Kf7 {[%emt 0:00:05]} 55. Bh7 {[%emt 0:00:57]} Kf6 {[%emt 0:00:08]} 56. Be4 {[%emt 0:00:25]} Kf7 {[%emt 0:00:06]} 57. Ka4 {[%emt 0:00:02]} Kg8 {[%emt 0:00:07]} 58. Kxa5 {[%emt 0:00:03] Black escapes into a draw.  Weighted Error Value: White=0.20 (precise) /Black=0.23 (precise)} 1/2-1/2

[Event "FRA-ch Teams Top 16-A 2022"]
[Site "Chartres"]
[Date "2022.06.13"]
[Round "5.29"]
[White "Feller, Sebastien"]
[Black "Baillon, Olivier"]
[Result "0-1"]
[ECO "B70"]
[WhiteElo "2569"]
[BlackElo "2197"]
[Annotator "TA"]
[PlyCount "67"]
[EventDate "2022.06.09"]
[EventType "team-tourn"]
[EventCountry "FRA"]
[SourceTitle "playchess.com"]
[Source "ChessBase"]
[SourceQuality "1"]
[TimeControl "40/5400+30:1800+30"]

{[%evp 22,67,0,7,25,18,26,28,33,22,18,26,78,46,41,11,23,14,51,21,16,0,0,-39,-25,-36,-4,-141,-157,-272,-266,-368,-320,-323,-301,-331,-322,-322,-322,-327,-337,-402,-400,-413,-383,-382,-296,-1275]} 1. e4 {[%emt 0:00:03]} c5 {[%emt 0:00:16]} 2. Nf3 {[%emt 0:02:28]} d6 {[%emt 0:00:25]} 3. d4 {[%emt 0:03:19]} cxd4 {[%emt 0:00:19]} 4. Nxd4 {[%emt 0:00:06]} Nf6 {[%emt 0:00:12]} 5. Nc3 {[%emt 0:00:53]} Nc6 {[%emt 0:00:22]} 6. Nb3 {[%emt 0:09:44]} g6 {[%emt 0:07:15]} 7. Be2 {[%emt 0:05:36]} Bg7 {[%emt 0:00:15]} 8. O-O {[%emt 0:00:07]} O-O {[%emt 0:00:15]} 9. Re1 {[%emt 0:00:10]} b6 {[%emt 0:17:55]} 10. Bf1 {[%emt 0:01:17]} Bb7 {[%emt 0:01:12]} 11. Bg5 {[%emt 0:00:50]} Rc8 {[%emt 0:08:25]} 12. Nd5 {[%emt 0:17:00]} Ne5 {[%emt 0:13:11] [#] B70: Sicilian Dragon: 6 g3 and 6 Be2 (without a later Be3).} 13. Bxf6 $146 {[%emt 0:01:48]} ({Predecessor:} 13. Nxf6+ exf6 14. Bh4 Nc4 15. Qd4 d5 16. exd5 Qxd5 17. Qxd5 Bxd5 18. Rad1 Rfd8 19. Rd4 Be6 20. Rxd8+ Rxd8 21. Rxe6 fxe6 22. Bxc4 {0-1 (31) Tzolas,G (1991)-Pountzas,H (2126) Achaia 2012}) 13... exf6 {[%emt 0:00:25]} 14. c3 {[%emt 0:01:33]} Nc4 {[%emt 0:02:16] White has an edge.} 15. Bxc4 {[%emt 0:00:35]} Rxc4 {[%emt 0:00:07]} 16. Qd3 {[%emt 0:00:20]} Ra4 {[%emt 0:03:15]} (16... Rc8 $11 {remains equal.}) 17. Nd2 {[%emt 0:05:05] Pair of Knights!} Ra5 {[%emt 0:03:47][%cal Of6f5]} 18. b4 {[%emt 0:03:27]} Ra4 {[%emt 0:01:16][%cal Of6f5]} 19. a3 {[%emt 0:02:05]} Qd7 {[%emt 0:03:08]} (19... f5 $5) 20. c4 {[%emt 0:03:01]} f5 {[%emt 0:03:15] And now ...Bxd5 would win.} 21. Ra2 {[%emt 0:16:16]} Re8 {[%emt 0:01:31]} 22. h3 {[%emt 0:16:48]} Bxd5 {[%emt 0:09:15]} 23. Qxd5 {[%emt 0:00:25]} Bc3 {[%emt 0:03:59] ...Bxb4 is the strong threat.} (23... a5 $5 {[%cal Ra5b4]} 24. b5 Qe6 $11) 24. Qd3 {[%emt 0:08:48]} (24. Rb1 $11 {was the only way to keep the balance.}) 24... Bxb4 $1 $17 {[%emt 0:01:24]} 25. e5 {[%emt 0:00:01]} (25. Re2 $17) 25... Qc6 $19 {[%emt 0:01:43]} 26. Re2 {[%emt 0:01:14]} Bxd2 {[%emt 0:00:53]} 27. Rexd2 {[%emt 0:00:26]} dxe5 {[%emt 0:00:26][%cal Bd6e5,Be5e4][%mdl 32]} ({Wrong is} 27... Rxe5 $2 28. Qxd6 Re1+ 29. Kh2 Rxc4 30. Qxc6 Rxc6 31. Kg3 $19) 28. Rac2 {[%emt 0:00:06]} e4 {[%emt 0:02:24]} 29. Qb3 {[%emt 0:00:01]} Ra5 {[%emt 0:01:35][%cal Ba4a5,Ba5c5,Bc5c4][%mdl 32]} 30. Rd5 {[%emt 0:01:03]} Rc5 {[%emt 0:02:27]} 31. Rcd2 {[%emt 0:00:01]} Rxc4 {[%emt 0:01:41]} 32. Rd7 {[%emt 0:00:17]} Qe6 {[%emt 0:01:52] [#] aiming for ...Rc1+.} 33. Kh2 {[%emt 0:01:25]} a6 {[%emt 0:04:24]} 34. R7d4 $2 {[%emt 0:01:12] Weighted Error Value: White=0.34/Black=0.16 (very precise)} (34. Qg3 Qf6 35. R7d6) 0-1

[Event "FRA-ch Teams Top 16-A 2022"]
[Site "Chartres"]
[Date "2022.06.13"]
[Round "5.30"]
[White "Hirth, Julien"]
[Black "Lazarev, Vladimir"]
[Result "1-0"]
[ECO "B22"]
[WhiteElo "2072"]
[BlackElo "2491"]
[Annotator "TA"]
[PlyCount "83"]
[EventDate "2022.06.09"]
[EventType "team-tourn"]
[EventCountry "FRA"]
[SourceTitle "playchess.com"]
[Source "ChessBase"]
[SourceQuality "1"]
[TimeControl "40/5400+30:1800+30"]

{[%evp 16,83,21,32,28,-9,15,8,2,14,19,15,24,6,21,0,10,-6,0,-2,0,-17,-4,0,68,-2,21,14,7,18,155,154,158,157,152,180,172,168,179,166,173,127,163,168,162,117,88,93,108,75,216,215,207,206,218,232,229,225,204,181,839,820,800,749,752,721,722,519,606,602]} 1. e4 {[%emt 0:00:05]} c5 {[%emt 0:01:36]} 2. c3 {[%emt 0:00:07]} Nf6 {[%emt 0:00:46]} 3. e5 {[%emt 0:00:07]} Nd5 {[%emt 0:00:07]} 4. Nf3 {[%emt 0:00:11]} Nc6 {[%emt 0:01:21]} 5. Bc4 {[%emt 0:00:15][%cal Bf1c4,Bc4b3,Bb3c2][%mdl 32]} Nb6 {[%emt 0:06:36]} 6. Bb3 {[%emt 0:00:23]} d5 {[%emt 0:06:02]} 7. exd6 {[%emt 0:00:47]} c4 {[%emt 0:02:44]} 8. Bc2 {[%emt 0:00:18]} Qxd6 {[%emt 0:01:07]} 9. O-O {[%emt 0:00:14]} g6 {[%emt 0:03:29] B22: Sicilian: 2 c3.} 10. Qe2 {[%emt 0:06:44]} Bg7 {[%emt 0:03:01]} 11. Na3 {[%emt 0:00:28]} Be6 {[%emt 0:04:33] The position is equal.} 12. b3 {[%emt 0:03:19][%cal Rb3c4]} cxb3 {[%emt 0:05:32]} 13. axb3 {[%emt 0:00:08]} O-O {[%emt 0:01:32]} 14. d4 {[%emt 0:05:52]} Bd5 {[%emt 0:13:49] [#]} 15. Rd1 $146 {[%emt 0:24:51]} (15. Nc4 $5 {[%cal Rc4d6]} Qc7 16. Be4 $14) ({Predecessor:} 15. Nc4 Nxc4 16. bxc4 Bxf3 17. Qxf3 Rac8 18. c5 Qd7 19. Rd1 Rfd8 20. Bf4 e5 21. dxe5 Qe7 22. Re1 Re8 23. Bb3 a6 24. e6 {1-0 (24) Mamedyarov,S (2770)-Sirosh,I (2400) Tornelo INT 2021}) 15... Rfe8 {[%emt 0:08:31]} 16. Nb5 {[%emt 0:22:09]} Qb8 {[%emt 0:03:09]} 17. Be3 {[%emt 0:07:40]} a6 {[%emt 0:08:12]} 18. Na3 {[%emt 0:01:17][%cal Of3e5]} Qc7 {[%emt 0:02:30]} (18... e5 {seems wilder.} 19. Nc4 exd4 20. Nxb6 Bxf3 21. gxf3 dxe3 22. Nxa8 Bxc3 23. Ra4 exf2+ 24. Qxf2 Qxa8 25. Rc4 Ba5) 19. Nc4 {[%emt 0:01:12]} Rad8 {[%emt 0:06:08]} (19... Nd7 $11) 20. Bg5 {[%emt 0:02:49]} (20. Nxb6 $1 $14 Qxb6 21. Ne1) 20... f6 {[%emt 0:08:07]} 21. Bh4 {[%emt 0:03:08]} e5 {[%emt 0:05:18]} 22. Bg3 {[%emt 0:06:39]} Bxc4 {[%emt 0:05:03]} (22... f5 $11 {remains equal.}) 23. bxc4 $16 {[%emt 0:00:07]} Qf7 {[%emt 0:00:48]} 24. d5 {[%emt 0:02:30]} Nb8 {[%emt 0:00:33]} 25. Rab1 $1 {[%emt 0:01:29] White is more active.} Qc7 {[%emt 0:01:23]} 26. Nd4 {[%emt 0:01:59] Hoping for Ne6.} Nxc4 {[%emt 0:00:50]} 27. Ne6 {[%emt 0:00:35]} Qc8 {[%emt 0:00:08]} 28. Nxd8 {[%emt 0:00:42]} Rxd8 {[%emt 0:00:03]} 29. d6 {[%emt 0:01:23]} Nxd6 {[%emt 0:00:16]} 30. Bb3+ {[%emt 0:00:13]} Kh8 {[%emt 0:00:45]} 31. f4 {[%emt 0:01:50][%cal Rf4e5]} Nc6 {[%emt 0:00:47]} 32. Bf2 {[%emt 0:01:02] Black must now prevent Bb6. A strong pair of Bishops.} Nb5 {[%emt 0:00:42] [#] A mistake that costs the game.} (32... Bf8 $16) 33. Rxd8+ $1 $18 {[%emt 0:00:50]} Qxd8 {[%emt 0:00:29]} 34. Rd1 {[%emt 0:00:17]} Qc8 {[%emt 0:00:52]} 35. Qc4 {[%emt 0:00:29]} exf4 {[%emt 0:00:27] [#]} 36. Rd7 $3 {[%emt 0:02:24][%cal Od7b7,Bd1d7,Bd7d8,Bd8e8][%mdl 544] Rxb7! is the strong threat.} Qe8 {[%emt 0:00:32] [#]} 37. Qd3 $1 $40 {[%emt 0:02:50][%mdl 128] Black is in trouble.} ({And not} 37. Rxb7 Nd6 38. Qxa6 Nxb7 39. Qxb7 Ne5 $11) 37... Ne5 $2 {[%emt 0:00:36]} (37... Qf8) 38. Rd8 {[%emt 0:00:41] White is clearly winning.} Nxd3 {[%emt 0:00:23]} 39. Rxe8+ {[%emt 0:00:05]} Bf8 {[%emt 0:00:06]} 40. Rxf8+ {[%emt 0:00:05]} Kg7 {[%emt 0:00:05]} 41. Rg8+ {[%emt 0:30:27]} Kh6 {[%emt 0:30:07]} 42. Bd4 {[%emt 0:00:00] Weighted Error Value: White=0.15 (very precise) /Black=0.23 (precise)} 1-0

[Event "FRA-ch Teams Top 16-A 2022"]
[Site "Chartres"]
[Date "2022.06.13"]
[Round "5.31"]
[White "Koch, Jean-Rene"]
[Black "Mendeiros, Jerome"]
[Result "1-0"]
[ECO "D10"]
[WhiteElo "2441"]
[BlackElo "2097"]
[Annotator "TA"]
[PlyCount "127"]
[EventDate "2022.06.09"]
[EventType "team-tourn"]
[EventCountry "FRA"]
[SourceTitle "playchess.com"]
[Source "ChessBase"]
[SourceQuality "1"]
[TimeControl "40/5400+30:1800+30"]

{[%evp 10,127,38,2,13,14,0,0,0,0,20,13,61,40,36,50,36,38,45,50,52,14,53,0,54,54,51,41,46,39,64,35,64,16,33,24,25,0,72,-69,72,17,102,90,258,249,321,318,296,106,107,106,101,101,97,99,106,82,93,75,106,106,98,106,112,120,140,132,131,104,104,52,52,52,52,52,52,52,56,56,166,154,161,142,141,137,297,297,317,216,311,272,258,251,251,235,629,605,629,622,620,408,543,543,562,528,528,528,510,472,522,522,1285,562,5129,5015,5039,3017,2612,2045]} 1. c4 {[%emt 0:00:02]} c6 {[%emt 0:00:22]} 2. d4 {[%emt 0:00:39]} d5 {[%emt 0:00:11]} 3. cxd5 {[%emt 0:00:06]} cxd5 {[%emt 0:00:07]} 4. Bf4 {[%emt 0:00:05]} Qb6 {[%emt 0:05:38]} 5. Nc3 {[%emt 0:04:41]} Nf6 {[%emt 0:00:51]} 6. Qd2 {[%emt 0:10:19]} (6. e3 {with more complications.} Qxb2 7. Bb5+ Bd7 8. Bxd7+ Nbxd7 9. Nge2) 6... Nc6 {[%emt 0:05:01] D10: Slav Defence: 3 cxd5 (without early Nf3) and 3 Nc3.} 7. e3 {[%emt 0:00:30]} Bf5 {[%emt 0:03:41]} 8. f3 {[%emt 0:25:07] [#]} h6 $146 {[%emt 0:08:26] The position is equal.} ({Predecessor:} 8... e6 9. Rc1 Bb4 10. h4 h5 11. a3 Bxc3 12. Rxc3 O-O 13. Be2 Rfe8 14. Bd1 e5 15. Bxe5 Nxe5 16. dxe5 Rxe5 {1-0 (44) Morozevich,A (2774)-Predojevic,B (2651) Sarajevo 2008}) 9. Rc1 {[%emt 0:05:42]} Rc8 {[%emt 0:10:56]} 10. g4 {[%emt 0:09:10]} Bd7 {[%emt 0:17:12]} (10... Bh7 $11) 11. Na4 {[%emt 0:05:00]} Qb4 {[%emt 0:04:46]} 12. Qxb4 {[%emt 0:06:41]} Nxb4 {[%emt 0:00:34]} 13. Rxc8+ {[%emt 0:00:06]} Bxc8 {[%emt 0:00:05]} 14. a3 {[%emt 0:00:25]} Nc6 {[%emt 0:00:24]} 15. Bb5 {[%emt 0:04:36]} Nd7 {[%emt 0:06:58]} 16. Ne2 {[%emt 0:02:40]} (16. Bc7 $14) 16... a6 {[%emt 0:05:53]} (16... g5 $1 $11 17. Bc7 h5) 17. Bxc6 $14 {[%emt 0:04:38]} bxc6 {[%emt 0:00:07]} 18. Kf2 {[%emt 0:00:44]} f6 {[%emt 0:00:30]} 19. Bc7 {[%emt 0:01:29]} e5 {[%emt 0:03:00]} 20. Rc1 $36 {[%emt 0:02:45][%mdl 2048] White has some pressure.} (20. Ng3 $5 {[%cal Rh2h4]}) 20... Bb7 {[%emt 0:00:24]} 21. f4 {[%emt 0:02:30]} (21. Ng3 $14 {deserves consideration.}) 21... h5 {[%emt 0:05:55]} 22. g5 {[%emt 0:01:07][%cal Rd4e5]} exf4 {[%emt 0:02:08]} 23. Bxf4 {[%emt 0:02:15]} h4 {[%emt 0:02:06] [#]} (23... Be7 $11) 24. Rc3 {[%emt 0:02:10]} (24. g6 $1 $16) 24... Kd8 {[%emt 0:03:08]} (24... fxg5 $1 $15 {keeps the upper hand.} 25. Bxg5 Rh5) 25. gxf6 {[%emt 0:00:56]} (25. g6 $16) 25... gxf6 {[%emt 0:02:57]} (25... Nxf6 $11 {remains equal.} 26. Rb3 Bc8) 26. Nc1 $16 {[%emt 0:01:15]} a5 $2 {[%emt 0:02:37]} (26... Bh6 $16 {was called for.}) 27. Nb3 $18 {[%emt 0:00:59]} Ba6 {[%emt 0:00:29]} 28. Nxa5 {[%emt 0:01:29]} Bb5 {[%emt 0:00:33]} 29. Nb7+ $2 {[%emt 0:01:43] Pair of Knights!} (29. Nxc6+ $18 Ke8 30. b3) 29... Kc8 {[%emt 0:01:55]} 30. Nbc5 {[%emt 0:00:56] White is more active.} Nxc5 {[%emt 0:00:58]} 31. Nxc5 {[%emt 0:00:05]} Bxc5 {[%emt 0:00:21]} 32. Rxc5 $16 {[%emt 0:00:51][%cal Oa3a4][%mdl 4096] Endgame KRB-KRB} Kd7 {[%emt 0:02:15]} 33. Rc3 {[%emt 0:00:44]} Ra8 {[%emt 0:02:15]} 34. Kg2 {[%emt 0:01:07]} Rh8 {[%emt 0:01:12]} 35. b3 {[%emt 0:00:54]} Be2 {[%emt 0:00:10]} 36. a4 {[%emt 0:01:37][%cal Ba3a4,Ba4b5,Bb5b6][%mdl 32]} Bg4 {[%emt 0:00:22]} 37. b4 {[%emt 0:01:05] Hoping for b5.} Rg8 {[%emt 0:00:33]} 38. Kf2 {[%emt 0:00:29]} Bh3 {[%emt 0:00:46]} 39. b5 {[%emt 0:01:33]} cxb5 {[%emt 0:00:40]} 40. Rc7+ {[%emt 0:00:39]} (40. axb5 $16 Rg2+ 41. Kf3) 40... Ke6 $1 $14 {[%emt 0:00:41]} 41. axb5 {[%emt 0:02:07]} Rg2+ {[%emt 0:00:46]} 42. Ke1 {[%emt 0:04:36] Black must now prevent b6.} Rb2 {[%emt 0:01:31]} 43. Rh7 {[%emt 0:02:22]} Bg4 {[%emt 0:02:16]} 44. Rxh4 {[%emt 0:00:32]} Kf5 {[%emt 0:00:16] Black is on the road to losing.} (44... Bf3 $14) 45. h3 $18 {[%emt 0:03:35]} Be2 {[%emt 0:05:46]} 46. b6 {[%emt 0:04:15][%cal Ob6b7] Strongly threatening b7!} Ba6 {[%emt 0:00:48] [#]} 47. Bc7 $1 {[%emt 0:00:32]} Kg5 $2 {[%emt 0:01:58]} (47... Re2+ $16 48. Kd1 Rxe3) 48. Rg4+ {[%emt 0:00:32]} Kf5 {[%emt 0:00:32]} 49. Rf4+ {[%emt 0:00:30]} Kg5 {[%emt 0:00:10]} (49... Ke6 {might work better.} 50. Kd1 Ke7) 50. h4+ {[%emt 0:00:20]} Kg6 {[%emt 0:00:43]} 51. Kd1 {[%emt 0:01:03]} Bd3 {[%emt 0:02:30]} 52. Rg4+ {[%emt 0:05:54]} Kf5 $2 {[%emt 0:00:53]} (52... Kh7 53. Rg3 Bf5) 53. Rg7 {[%emt 0:01:53] aiming for h5.} Ke4 {[%emt 0:03:14]} 54. Re7+ {[%emt 0:01:37]} Kf5 {[%emt 0:00:25]} 55. Bd8 {[%emt 0:01:18]} Ba6 {[%emt 0:03:41]} 56. Kc1 {[%emt 0:00:46] White is clearly winning.} Rb5 {[%emt 0:00:43]} 57. Ra7 {[%emt 0:02:02]} Bc8 {[%emt 0:00:21]} 58. Rc7 {[%emt 0:00:50]} Ba6 {[%emt 0:00:51]} 59. Rc5 {[%emt 0:00:30] And now Rxb5 would win.} Rb4 {[%emt 0:01:17]} 60. h5 {[%emt 0:01:22][%cal Bh4h5,Bh5h6][%mdl 32]} Ke4 {[%emt 0:08:06]} 61. Kd2 {[%emt 0:00:22]} (61. h6 $142) 61... Bd3 {[%emt 0:00:40]} 62. h6 {[%emt 0:00:58]} Rb2+ {[%emt 0:00:17]} 63. Kc3 {[%emt 0:00:26]} Rc2+ {[%emt 0:01:47]} 64. Kb3 {[%emt 0:00:12] Weighted Error Value: White=0.27 (precise) /Black=0.39} 1-0

[Event "FRA-ch Teams Top 16-A 2022"]
[Site "Chartres"]
[Date "2022.06.13"]
[Round "5.32"]
[White "Auvray, Juliette"]
[Black "Schippke, Manon"]
[Result "1/2-1/2"]
[ECO "B85"]
[WhiteElo "1970"]
[BlackElo "2072"]
[Annotator "TA"]
[PlyCount "59"]
[EventDate "2022.06.09"]
[EventType "team-tourn"]
[EventCountry "FRA"]
[SourceTitle "playchess.com"]
[Source "ChessBase"]
[SourceQuality "1"]
[TimeControl "40/5400+30:1800+30"]

{[%evp 20,59,15,0,0,0,11,0,61,0,0,0,0,0,0,-13,-14,-13,-8,-5,-6,-5,-7,-21,0,-40,-15,-10,0,0,47,15,17,16,17,13,13,0,0,-8,-7,-30]} 1. e4 {[%emt 0:00:02]} c5 {[%emt 0:00:03]} 2. Nf3 {[%emt 0:00:06]} e6 {[%emt 0:00:02]} 3. d4 {[%emt 0:00:15]} cxd4 {[%emt 0:00:03]} 4. Nxd4 {[%emt 0:00:08]} Nc6 {[%emt 0:00:02]} 5. Nc3 {[%emt 0:01:12]} Qc7 {[%emt 0:00:04]} 6. Be2 {[%emt 0:02:15]} a6 {[%emt 0:05:01]} 7. Be3 {[%emt 0:03:12]} Nf6 {[%emt 0:00:06]} 8. O-O {[%emt 0:02:33]} Be7 {[%emt 0:02:24]} 9. Kh1 {[%emt 0:05:02]} O-O {[%emt 0:04:36]} 10. f4 {[%emt 0:03:12]} d6 {[%emt 0:00:04]} 11. Bd3 {[%emt 0:05:47]} Nxd4 {[%emt 0:16:10] B85: Sicilian Scheveningen: 6 Be2 a6, lines with early Be3.} 12. Bxd4 {[%emt 0:00:15]} e5 {[%emt 0:00:02]} 13. Be3 {[%emt 0:03:10]} Be6 {[%emt 0:10:11]} ({Better is} 13... b5 $11) 14. Qf3 {[%emt 0:06:37]} (14. f5 $14 Bc4 15. Qf3) 14... exf4 $11 {[%emt 0:12:21]} 15. Bxf4 {[%emt 0:04:03] [#]} Nd7 $146 {[%emt 0:00:19][%cal Bf6d7,Bd7e5,Be5g6,Bg6f4][%mdl 32]} ({Predecessor:} 15... Rfe8 16. Rae1 Nd7 17. Nd5 Bxd5 18. exd5 Bf6 19. Rxe8+ Rxe8 20. Bg5 Re4 21. Bd2 Re7 {0-1 (34) Dashko,A (2210)-Brodsky,M (2515) Krasnodar 1997}) 16. Qg3 {[%emt 0:03:10]} Ne5 {[%emt 0:02:26]} 17. Rad1 {[%emt 0:06:46]} Ng6 {[%emt 0:04:31]} 18. Nd5 {[%emt 0:07:25]} Bxd5 {[%emt 0:04:32]} 19. exd5 {[%emt 0:00:26]} Nxf4 {[%emt 0:00:58]} 20. Qxf4 {[%emt 0:03:05]} g6 {[%emt 0:03:09]} 21. Rf3 {[%emt 0:05:08]} f5 {[%emt 0:04:09]} 22. Rg3 {[%emt 0:11:41]} Bf6 {[%emt 0:04:38] [#] And now ...Be5 would win.} 23. Qxf5 {[%emt 0:07:39]} Be5 {[%emt 0:00:16]} 24. Qe6+ {[%emt 0:00:40]} Qf7 {[%emt 0:00:05]} (24... Kh8 $11 25. Rh3 Rf6) 25. Rf3 {[%emt 0:02:55]} Qxe6 {[%emt 0:00:03] The position is equal.} 26. Rxf8+ {[%emt 0:04:11]} Kxf8 {[%emt 0:00:10]} 27. dxe6 {[%emt 0:00:04]} Ke7 {[%emt 0:00:04]} 28. Bc4 {[%emt 0:02:10]} Bxb2 {[%emt 0:01:19]} 29. Rf1 {[%emt 0:05:08] [#] Rf7+ is the strong threat.} Bf6 {[%emt 0:00:52]} 30. Bd5 {[%emt 0:01:24] An interesting draw.  Weighted Error Value: White=0.14 (very precise) /Black=0.11 (very precise)} 1/2-1/2

[Event "FRA-ch Teams Top 16-A 2022"]
[Site "Chartres"]
[Date "2022.06.14"]
[Round "6.1"]
[White "Santos Ruiz, Miguel"]
[Black "Alonso Rosell, Alvar"]
[Result "1/2-1/2"]
[ECO "B12"]
[WhiteElo "2586"]
[BlackElo "2557"]
[Annotator "RC"]
[PlyCount "29"]
[EventDate "2022.06.09"]
[EventType "team-tourn"]
[EventCountry "FRA"]
[SourceTitle "playchess.com"]
[Source "ChessBase"]
[SourceQuality "1"]
[TimeControl "40/5400+30:1800+30"]

1. e4 {[%emt 0:00:02]} c6 {[%emt 0:00:09]} 2. d4 {[%emt 0:00:04]} d5 {[%emt 0:00:04]} 3. e5 {[%emt 0:00:05]} c5 {[%emt 0:01:06]} 4. c4 {[%emt 0:00:11]} cxd4 {[%emt 0:00:48]} 5. Nf3 {[%emt 0:00:05]} e6 {[%emt 0:02:35]} 6. Nxd4 {[%emt 0:00:12]} Nc6 {[%emt 0:00:06]} 7. Nc3 {[%emt 0:00:10]} Bc5 {[%emt 0:00:12]} 8. Nxc6 {[%emt 0:00:26]} bxc6 {[%emt 0:00:06]} 9. cxd5 {[%emt 0:00:06]} exd5 {[%emt 0:00:47]} 10. Bd3 {[%emt 0:00:39]} Ne7 {[%emt 0:00:13]} 11. O-O {[%emt 0:00:30]} Bf5 {[%emt 0:00:28]} 12. Bg5 {[%emt 0:00:30]} Bxd3 {[%emt 0:00:11]} 13. Qxd3 {[%emt 0:00:05]} O-O {[%emt 0:00:31]} 14. Rac1 {[%emt 0:03:31]} Bb6 {[%emt 0:03:11]} 15. Na4 {[%emt 0:00:25]} 1/2-1/2